[Event "Live Chess"]
[Site "Chess.com"]
[Date "2024.06.01"]
[Round "-"]
[White "KeithArkell"]
[Black "KwikPhoenix"]
[Result "1-0"]
[WhiteElo "2418"]
[BlackElo "2444"]
[TimeControl "300"]
[EndTime "15:55:56 PDT"]
[Termination "KeithArkell won on time"]

1. d4 {[%clk 0:04:58.6]} 1... f5 {[%clk 0:04:58.5]} 2. g3 {[%clk 0:04:57.3]}
2... Nf6 {[%clk 0:04:57.8]} 3. Bg2 {[%clk 0:04:56.9]} 3... e6 {[%clk 0:04:57.5]}
4. Nf3 {[%clk 0:04:56.4]} 4... Be7 {[%clk 0:04:56.9]} 5. O-O {[%clk 0:04:55.8]}
5... O-O {[%clk 0:04:56.5]} 6. b3 {[%clk 0:04:55.4]} 6... d6 {[%clk 0:04:53.7]}
7. Bb2 {[%clk 0:04:54.2]} 7... a5 {[%clk 0:04:53.3]} 8. Nbd2 {[%clk 0:04:51.3]}
8... Ne4 {[%clk 0:04:49.8]} 9. Nxe4 {[%clk 0:04:45.7]} 9... fxe4 {[%clk
0:04:49]} 10. Nd2 {[%clk 0:04:45]} 10... d5 {[%clk 0:04:48.5]} 11. f3 {[%clk
0:04:42.5]} 11... exf3 {[%clk 0:04:30.1]} 12. exf3 {[%clk 0:04:41.8]} 12... a4
{[%clk 0:04:28.4]} 13. f4 {[%clk 0:04:40.7]} 13... a3 {[%clk 0:04:27.1]} 14. Bc3
{[%clk 0:04:34]} 14... c5 {[%clk 0:04:26.5]} 15. Nf3 {[%clk 0:04:32.9]} 15...
Nc6 {[%clk 0:04:24.2]} 16. Qd2 {[%clk 0:04:29.5]} 16... b5 {[%clk 0:04:21.2]}
17. Rae1 {[%clk 0:04:27.5]} 17... b4 {[%clk 0:04:16.3]} 18. Ba1 {[%clk
0:04:26.6]} 18... c4 {[%clk 0:03:36.7]} 19. bxc4 {[%clk 0:04:21.7]} 19... dxc4
{[%clk 0:03:36.6]} 20. Ne5 {[%clk 0:04:17.3]} 20... c3 {[%clk 0:03:33.4]} 21.
Bxc3 {[%clk 0:04:14.7]} 21... bxc3 {[%clk 0:03:30.2]} 22. Qxc3 {[%clk 0:04:14]}
22... Nxe5 {[%clk 0:03:28.1]} 23. Bxa8 {[%clk 0:04:13]} 23... Ba6 {[%clk
0:03:22.3]} 24. Rf2 {[%clk 0:03:52.9]} 24... Ng4 {[%clk 0:03:11.6]} 25. Bf3
{[%clk 0:03:46.3]} 25... Nxf2 {[%clk 0:03:05.3]} 26. Kxf2 {[%clk 0:03:45.7]}
26... Qd6 {[%clk 0:02:42.5]} 27. Bg4 {[%clk 0:03:30.8]} 27... Bf6 {[%clk
0:02:25.6]} 28. Bxe6+ {[%clk 0:03:27.5]} 28... Kh8 {[%clk 0:02:24.7]} 29. Kg2
{[%clk 0:02:34.7]} 29... Bb7+ {[%clk 0:02:08.3]} 30. Kh3 {[%clk 0:02:31.4]}
30... Bxd4 {[%clk 0:02:01.2]} 31. Qb3 {[%clk 0:02:25.8]} 31... Qc6 {[%clk
0:01:32.8]} 32. Qxa3 {[%clk 0:02:04.6]} 32... Qg2+ {[%clk 0:01:21.9]} 33. Kg4
{[%clk 0:02:03.9]} 33... h5+ {[%clk 0:01:03.6]} 34. Kg5 {[%clk 0:01:57.5]} 34...
Bf6+ {[%clk 0:00:59.8]} 35. Kg6 {[%clk 0:01:52.8]} 35... Be4+ {[%clk 0:00:51.3]}
36. f5 {[%clk 0:01:50.2]} 36... Rd8 {[%clk 0:00:45.6]} 37. Qe3 {[%clk 0:01:33]}
37... Qf3 {[%clk 0:00:34.9]} 38. Qxf3 {[%clk 0:01:31.4]} 38... Bxf3 {[%clk
0:00:34.8]} 39. Re3 {[%clk 0:01:20.5]} 39... Bc6 {[%clk 0:00:33.2]} 40. Kxh5
{[%clk 0:01:18.3]} 40... Bd4 {[%clk 0:00:29.8]} 41. Rd3 {[%clk 0:01:14.7]} 41...
Be4 {[%clk 0:00:28.2]} 42. Rd2 {[%clk 0:01:12.6]} 42... Bf3+ {[%clk 0:00:26.7]}
43. Kg6 {[%clk 0:01:12.1]} 43... Bb6 {[%clk 0:00:21.8]} 44. Rxd8+ {[%clk
0:01:10.5]} 44... Bxd8 {[%clk 0:00:21.7]} 45. a4 {[%clk 0:01:08.5]} 45... Bc6
{[%clk 0:00:20.9]} 46. Bb3 {[%clk 0:01:04.7]} 46... Bc7 {[%clk 0:00:19.4]} 47.
f6 {[%clk 0:01:02.4]} 47... gxf6 {[%clk 0:00:18.9]} 48. Kxf6 {[%clk 0:01:01.9]}
48... Kh7 {[%clk 0:00:18.1]} 49. c4 {[%clk 0:00:48.5]} 49... Kh6 {[%clk
0:00:17.8]} 50. c5 {[%clk 0:00:48.1]} 50... Kh5 {[%clk 0:00:17.5]} 51. Kf5
{[%clk 0:00:46.5]} 51... Kh6 {[%clk 0:00:15.9]} 52. Bc2 {[%clk 0:00:40.3]} 52...
Ba5 {[%clk 0:00:12.8]} 53. g4 {[%clk 0:00:37.4]} 53... Bb4 {[%clk 0:00:11.4]}
54. g5+ {[%clk 0:00:35.6]} 54... Kg7 {[%clk 0:00:11]} 55. h4 {[%clk 0:00:33.5]}
55... Bxc5 {[%clk 0:00:10.6]} 56. h5 {[%clk 0:00:32.4]} 56... Bd7+ {[%clk
0:00:10.2]} 57. Kf4 {[%clk 0:00:31.2]} 57... Bd6+ {[%clk 0:00:09.4]} 58. Ke4
{[%clk 0:00:30.3]} 58... Be8 {[%clk 0:00:08.2]} 59. Kd5 {[%clk 0:00:29.3]} 59...
Bc7 {[%clk 0:00:04.8]} 60. h6+ {[%clk 0:00:29.1]} 60... Kh8 {[%clk 0:00:03.4]}
61. g6 {[%clk 0:00:28.1]} 61... Bxg6 {[%clk 0:00:00.3]} 62. Bxg6 {[%clk
0:00:27.2]} 62... Bf4 {[%clk 0:00:00.2]} 63. h7 {[%clk 0:00:26.1]} 63... Bh6
{[%clk 0:00:00.1]} 64. a5 {[%clk 0:00:23.2]} 1-0

[Event "Live Chess"]
[Site "Chess.com"]
[Date "2024.06.01"]
[Round "-"]
[White "RichardABates"]
[Black "CCGoodKnightRookie"]
[Result "1-0"]
[WhiteElo "2303"]
[BlackElo "2310"]
[TimeControl "300"]
[EndTime "15:56:16 PDT"]
[Termination "RichardABates won by resignation"]

1. d4 {[%clk 0:04:57.8]} 1... d5 {[%clk 0:04:59.2]} 2. c4 {[%clk 0:04:56]} 2...
e6 {[%clk 0:04:58.8]} 3. Nf3 {[%clk 0:04:54.4]} 3... c5 {[%clk 0:04:58.3]} 4.
cxd5 {[%clk 0:04:52.5]} 4... exd5 {[%clk 0:04:57.7]} 5. Nc3 {[%clk 0:04:51.4]}
5... Nc6 {[%clk 0:04:57.2]} 6. dxc5 {[%clk 0:04:49.5]} 6... d4 {[%clk
0:04:54.8]} 7. Na4 {[%clk 0:04:46.5]} 7... Bxc5 {[%clk 0:04:52.1]} 8. Nxc5
{[%clk 0:04:45.2]} 8... Qa5+ {[%clk 0:04:51.8]} 9. Bd2 {[%clk 0:04:44.1]} 9...
Qxc5 {[%clk 0:04:51.1]} 10. Rc1 {[%clk 0:04:43]} 10... Qe7 {[%clk 0:04:50.3]}
11. e3 {[%clk 0:04:40.3]} 11... Nf6 {[%clk 0:04:47.7]} 12. Bb5 {[%clk
0:04:35.8]} 12... dxe3 {[%clk 0:04:44.9]} 13. Bxc6+ {[%clk 0:04:30]} 13... bxc6
{[%clk 0:04:43]} 14. Bxe3 {[%clk 0:04:28.8]} 14... O-O {[%clk 0:04:37.3]} 15.
O-O {[%clk 0:04:26.8]} 15... Nd5 {[%clk 0:04:33.3]} 16. Bc5 {[%clk 0:04:25.2]}
16... Qf6 {[%clk 0:04:29.1]} 17. Bxf8 {[%clk 0:04:23.4]} 17... Kxf8 {[%clk
0:04:28.5]} 18. Qd4 {[%clk 0:04:22]} 1-0

[Event "Live Chess"]
[Site "Chess.com"]
[Date "2024.06.01"]
[Round "-"]
[White "Queensandpawns"]
[Black "blunderabit"]
[Result "0-1"]
[WhiteElo "2322"]
[BlackElo "1790"]
[TimeControl "300"]
[EndTime "15:56:49 PDT"]
[Termination "blunderabit won by resignation"]

1. e4 {[%clk 0:04:59.2]} 1... c5 {[%clk 0:04:56.5]} 2. d3 {[%clk 0:04:57.4]}
2... Nc6 {[%clk 0:04:52.2]} 3. g3 {[%clk 0:04:57.3]} 3... g6 {[%clk 0:04:50.1]}
4. Bg2 {[%clk 0:04:57.2]} 4... Bg7 {[%clk 0:04:48.7]} 5. Nc3 {[%clk 0:04:57.1]}
5... d6 {[%clk 0:04:45.8]} 6. Nge2 {[%clk 0:04:57]} 6... e6 {[%clk 0:04:44.2]}
7. O-O {[%clk 0:04:56.9]} 7... Nge7 {[%clk 0:04:42.7]} 8. f4 {[%clk 0:04:56.8]}
8... O-O {[%clk 0:04:41]} 9. Bd2 {[%clk 0:04:54.3]} 9... f5 {[%clk 0:04:39.3]}
10. g4 {[%clk 0:04:51.8]} 10... Rb8 {[%clk 0:04:30.8]} 11. Ng3 {[%clk
0:04:43.1]} 11... Nd4 {[%clk 0:04:28.2]} 12. exf5 {[%clk 0:04:40.9]} 12... exf5
{[%clk 0:04:26.2]} 13. g5 {[%clk 0:04:40.3]} 13... d5 {[%clk 0:04:18.9]} 14. h4
{[%clk 0:04:39]} 14... Ne6 {[%clk 0:03:58.9]} 15. h5 {[%clk 0:04:35.7]} 15...
Bd4+ {[%clk 0:03:57]} 16. Kh2 {[%clk 0:04:34]} 16... gxh5 {[%clk 0:03:50.5]} 17.
Qxh5 {[%clk 0:04:33.9]} 17... Ng6 {[%clk 0:03:39.8]} 18. Nxd5 {[%clk 0:04:30.6]}
18... Ng7 {[%clk 0:03:32.8]} 19. Qh6 {[%clk 0:04:26.8]} 19... Be6 {[%clk
0:03:29.4]} 20. c4 {[%clk 0:04:21]} 20... Qd6 {[%clk 0:03:05.6]} 21. Bc3 {[%clk
0:04:08.5]} 21... Kf7 {[%clk 0:02:59.2]} 22. Bxd4 {[%clk 0:03:58.7]} 22... cxd4
{[%clk 0:02:57.2]} 23. Nf6 {[%clk 0:03:54.2]} 23... Rh8 {[%clk 0:02:38.7]} 24.
Rae1 {[%clk 0:03:45.8]} 24... Nxf4 {[%clk 0:02:31.7]} 25. Rxf4 {[%clk
0:03:42.8]} 25... Qxf4 {[%clk 0:02:27.4]} 26. g6+ {[%clk 0:03:41.6]} 26... hxg6
{[%clk 0:02:23]} 27. Qxh8 {[%clk 0:03:21.6]} 27... Rxh8+ {[%clk 0:02:19.5]} 28.
Kg1 {[%clk 0:03:21.5]} 28... Qxg3 {[%clk 0:02:17.3]} 29. Ne4 {[%clk 0:03:21.4]}
29... fxe4 {[%clk 0:02:14.3]} 0-1

[Event "Live Chess"]
[Site "Chess.com"]
[Date "2024.06.01"]
[Round "-"]
[White "booktrunk"]
[Black "WelshTiger"]
[Result "0-1"]
[WhiteElo "1471"]
[BlackElo "2478"]
[TimeControl "300"]
[EndTime "15:56:51 PDT"]
[Termination "WelshTiger won by resignation"]

1. d4 {[%clk 0:04:52.6]} 1... d5 {[%clk 0:04:58.8]} 2. Nc3 {[%clk 0:04:49.6]}
2... c6 {[%clk 0:04:56.1]} 3. Bf4 {[%clk 0:04:49.5]} 3... Nf6 {[%clk 0:04:49.5]}
4. e3 {[%clk 0:04:43]} 4... Bf5 {[%clk 0:04:45.4]} 5. h4 {[%clk 0:04:40.4]} 5...
e6 {[%clk 0:04:44.2]} 6. Bd3 {[%clk 0:04:39.2]} 6... Bxd3 {[%clk 0:04:38.5]} 7.
Qxd3 {[%clk 0:04:37.7]} 7... Bd6 {[%clk 0:04:38.4]} 8. Nf3 {[%clk 0:04:35.2]}
8... Bxf4 {[%clk 0:04:23.7]} 9. exf4 {[%clk 0:04:09.3]} 9... Qd6 {[%clk
0:04:22.8]} 10. g3 {[%clk 0:04:08.2]} 10... Nbd7 {[%clk 0:04:21.1]} 11. O-O-O
{[%clk 0:04:06.4]} 11... O-O-O {[%clk 0:04:19.1]} 12. Ne5 {[%clk 0:04:05.2]}
12... Rhf8 {[%clk 0:04:17.1]} 13. f3 {[%clk 0:03:58.3]} 13... a6 {[%clk
0:03:59.4]} 14. Nxd7 {[%clk 0:03:54.6]} 14... Rxd7 {[%clk 0:03:52.6]} 15. Nb1
{[%clk 0:03:43.2]} 15... c5 {[%clk 0:03:49.5]} 16. dxc5 {[%clk 0:03:41.2]} 16...
Qxc5 {[%clk 0:03:49]} 17. Qc3 {[%clk 0:03:39]} 17... Rc7 {[%clk 0:03:48.4]} 18.
Qxc5 {[%clk 0:03:37]} 18... Rxc5 {[%clk 0:03:47.7]} 19. Rhe1 {[%clk 0:03:34.3]}
19... Nh5 {[%clk 0:03:39.9]} 20. Rg1 {[%clk 0:03:30.6]} 20... Kd7 {[%clk
0:03:31.9]} 21. Rd3 {[%clk 0:03:29]} 21... Rfc8 {[%clk 0:03:30.3]} 22. Rc3
{[%clk 0:03:26.9]} 22... g6 {[%clk 0:03:24.6]} 23. Rxc5 {[%clk 0:03:24.7]} 23...
Rxc5 {[%clk 0:03:22.9]} 24. Kd2 {[%clk 0:03:24.2]} 24... Ng7 {[%clk 0:03:09.5]}
25. g4 {[%clk 0:03:20.3]} 25... Ne8 {[%clk 0:03:08.3]} 26. c3 {[%clk 0:03:18.1]}
26... Nd6 {[%clk 0:03:06.9]} 27. Kd3 {[%clk 0:03:16.1]} 27... f6 {[%clk
0:02:57.6]} 28. b4 {[%clk 0:03:14.9]} 28... Rc8 {[%clk 0:02:55.8]} 29. Na3
{[%clk 0:03:13.1]} 29... e5 {[%clk 0:02:54.2]} 30. fxe5 {[%clk 0:03:10.5]} 30...
fxe5 {[%clk 0:02:54.1]} 31. Nc2 {[%clk 0:03:09.2]} 31... Ke6 {[%clk 0:02:52]}
32. Re1 {[%clk 0:03:06.8]} 32... Nb5 {[%clk 0:02:38.9]} 33. f4 {[%clk
0:02:57.9]} 33... Rxc3+ {[%clk 0:02:34.5]} 34. Kd2 {[%clk 0:02:56.5]} 34... Rh3
{[%clk 0:02:25.5]} 35. Rxe5+ {[%clk 0:02:53.4]} 35... Kd6 {[%clk 0:02:24.9]} 36.
h5 {[%clk 0:02:45.7]} 36... gxh5 {[%clk 0:02:16.9]} 37. gxh5 {[%clk 0:02:42.8]}
37... Nc3 {[%clk 0:02:10]} 38. a4 {[%clk 0:02:39.6]} 38... Nxa4 {[%clk 0:02:06]}
39. Ne3 {[%clk 0:02:37.2]} 39... Nb6 {[%clk 0:02:04.2]} 40. Nf5+ {[%clk
0:02:34.8]} 40... Kc6 {[%clk 0:01:57.4]} 41. Ne7+ {[%clk 0:02:33.1]} 41... Kb5
{[%clk 0:01:55.8]} 42. Nxd5 {[%clk 0:02:30]} 42... Nxd5 {[%clk 0:01:54.7]} 43.
Rxd5+ {[%clk 0:02:28.9]} 43... Kxb4 {[%clk 0:01:54.3]} 44. Rd7 {[%clk
0:02:27.6]} 44... b5 {[%clk 0:01:49.1]} 45. Rb7 {[%clk 0:02:27.5]} 45... Rxh5
{[%clk 0:01:46.7]} 46. f5 {[%clk 0:02:26.5]} 46... Rxf5 {[%clk 0:01:44.8]} 47.
Rxh7 {[%clk 0:02:25.4]} 47... Rf2+ {[%clk 0:01:42.2]} 48. Kd3 {[%clk 0:02:21.7]}
48... a5 {[%clk 0:01:40.2]} 49. Rh4+ {[%clk 0:02:21.1]} 49... Kb3 {[%clk
0:01:39.5]} 50. Rh5 {[%clk 0:02:18.8]} 50... Ka4 {[%clk 0:01:34]} 51. Rh4+
{[%clk 0:02:16.9]} 51... b4 {[%clk 0:01:33]} 52. Ke3 {[%clk 0:02:16.1]} 52...
Rc2 {[%clk 0:01:31.1]} 53. Kd3 {[%clk 0:02:15.4]} 53... Rc8 {[%clk 0:01:29.9]}
54. Rh1 {[%clk 0:02:11.6]} 54... b3 {[%clk 0:01:28.1]} 55. Ra1+ {[%clk
0:02:11.1]} 55... Kb4 {[%clk 0:01:27.2]} 56. Kd2 {[%clk 0:02:09]} 56... a4
{[%clk 0:01:25.9]} 0-1

[Event "Live Chess"]
[Site "Chess.com"]
[Date "2024.06.01"]
[Round "-"]
[White "GwaryTek"]
[Black "LL220284LL"]
[Result "0-1"]
[WhiteElo "1903"]
[BlackElo "2514"]
[TimeControl "300"]
[EndTime "15:57:23 PDT"]
[Termination "LL220284LL won by checkmate"]

1. d4 {[%clk 0:04:55.4]} 1... c6 {[%clk 0:04:48.5]} 2. c4 {[%clk 0:04:52.8]}
2... g6 {[%clk 0:04:45.6]} 3. Nc3 {[%clk 0:04:51.7]} 3... Bg7 {[%clk 0:04:45.1]}
4. e4 {[%clk 0:04:50.7]} 4... d6 {[%clk 0:04:42.3]} 5. f3 {[%clk 0:04:48.2]}
5... Nd7 {[%clk 0:04:41.8]} 6. Be3 {[%clk 0:04:46.9]} 6... Ngf6 {[%clk
0:04:40.7]} 7. Bd3 {[%clk 0:04:45.5]} 7... e5 {[%clk 0:04:38.7]} 8. d5 {[%clk
0:04:43.1]} 8... c5 {[%clk 0:04:37.8]} 9. Nge2 {[%clk 0:04:41]} 9... O-O {[%clk
0:04:37.4]} 10. Qd2 {[%clk 0:04:39.6]} 10... a6 {[%clk 0:04:35.4]} 11. a4 {[%clk
0:04:32.5]} 11... Nh5 {[%clk 0:04:33.4]} 12. O-O {[%clk 0:04:21.3]} 12... f5
{[%clk 0:04:27.9]} 13. exf5 {[%clk 0:04:21.2]} 13... gxf5 {[%clk 0:04:27.7]} 14.
f4 {[%clk 0:04:18.7]} 14... e4 {[%clk 0:04:25]} 15. Bc2 {[%clk 0:04:17.1]} 15...
Qe8 {[%clk 0:04:13.5]} 16. Kh1 {[%clk 0:03:48.8]} 16... Ndf6 {[%clk 0:04:08.4]}
17. h3 {[%clk 0:03:46.4]} 17... Qg6 {[%clk 0:04:06.3]} 18. Qe1 {[%clk
0:03:42.3]} 18... Kh8 {[%clk 0:04:02.2]} 19. a5 {[%clk 0:03:27.6]} 19... Bd7
{[%clk 0:03:54.2]} 20. Ba4 {[%clk 0:03:21.4]} 20... Bxa4 {[%clk 0:03:52.6]} 21.
Nxa4 {[%clk 0:03:19.5]} 21... Rg8 {[%clk 0:03:47.7]} 22. Ra3 {[%clk 0:02:57]}
22... Nd7 {[%clk 0:03:38.1]} 23. b4 {[%clk 0:02:41.7]} 23... cxb4 {[%clk
0:03:33.1]} 24. Qxb4 {[%clk 0:02:41.6]} 24... Bc3 {[%clk 0:03:25.5]} 25. Qxc3+
{[%clk 0:02:35.3]} 25... Nhf6 {[%clk 0:03:23.5]} 26. Rg1 {[%clk 0:02:29]} 26...
Rac8 {[%clk 0:03:18.5]} 27. Bd4 {[%clk 0:02:07.8]} 27... h6 {[%clk 0:03:14.6]}
28. Nb6 {[%clk 0:02:05.4]} 28... Nxb6 {[%clk 0:03:11.2]} 29. Bxf6+ {[%clk
0:02:01.6]} 29... Kh7 {[%clk 0:03:10.8]} 30. axb6 {[%clk 0:02:00]} 30... Rce8
{[%clk 0:02:59.8]} 31. Bh4 {[%clk 0:01:45.6]} 31... Qh5 {[%clk 0:02:57.4]} 32.
Bg3 {[%clk 0:01:35.3]} 32... Qxe2 {[%clk 0:02:55.8]} 33. Bh2 {[%clk 0:01:22.3]}
33... e3 {[%clk 0:02:51.8]} 34. Re1 {[%clk 0:01:20.3]} 34... Qxg2# {[%clk
0:02:50.7]} 0-1

[Event "Live Chess"]
[Site "Chess.com"]
[Date "2024.06.01"]
[Round "-"]
[White "ShanthamGrarks"]
[Black "upoe610"]
[Result "0-1"]
[WhiteElo "1786"]
[BlackElo "2198"]
[TimeControl "300"]
[EndTime "15:57:33 PDT"]
[Termination "upoe610 won by resignation"]

1. d4 {[%clk 0:04:56.4]} 1... Nf6 {[%clk 0:04:58.8]} 2. Nc3 {[%clk 0:04:55.9]}
2... d5 {[%clk 0:04:57.5]} 3. e4 {[%clk 0:04:55]} 3... dxe4 {[%clk 0:04:55.2]}
4. f3 {[%clk 0:04:53.7]} 4... c5 {[%clk 0:04:52.1]} 5. d5 {[%clk 0:04:51.7]}
5... e6 {[%clk 0:04:50.3]} 6. fxe4 {[%clk 0:04:50.4]} 6... exd5 {[%clk
0:04:49.2]} 7. e5 {[%clk 0:04:50]} 7... Qe7 {[%clk 0:04:45.6]} 8. Nf3 {[%clk
0:04:49]} 8... d4 {[%clk 0:04:43.6]} 9. Nb5 {[%clk 0:04:39.3]} 9... Ng4 {[%clk
0:04:40.5]} 10. Nd6+ {[%clk 0:04:37.3]} 10... Kd8 {[%clk 0:04:38.3]} 11. Bf4
{[%clk 0:04:02.2]} 11... Nxe5 {[%clk 0:04:30.1]} 12. Bxe5 {[%clk 0:03:46.6]}
12... f6 {[%clk 0:04:27.6]} 13. Nxc8 {[%clk 0:03:44.5]} 13... Kxc8 {[%clk
0:04:25.4]} 14. Be2 {[%clk 0:03:37]} 14... fxe5 {[%clk 0:04:23.7]} 15. O-O
{[%clk 0:03:36.5]} 15... Nc6 {[%clk 0:04:22.4]} 16. Nd2 {[%clk 0:03:21.2]} 16...
Kc7 {[%clk 0:04:19]} 17. Nc4 {[%clk 0:03:16.9]} 17... g6 {[%clk 0:04:16.9]} 18.
Bf3 {[%clk 0:03:12.5]} 18... Bg7 {[%clk 0:04:15.3]} 19. Qd3 {[%clk 0:02:59.7]}
19... Rhf8 {[%clk 0:04:11.7]} 20. Rae1 {[%clk 0:02:53]} 20... Rae8 {[%clk
0:04:10.1]} 21. Qe4 {[%clk 0:02:48.4]} 21... Rf4 {[%clk 0:04:06.9]} 22. Qd5
{[%clk 0:02:46.7]} 22... Rd8 {[%clk 0:04:03.8]} 23. Nd6 {[%clk 0:02:24.8]} 23...
Qxd6 {[%clk 0:03:58]} 24. Qc4 {[%clk 0:02:22.4]} 24... d3 {[%clk 0:03:53]} 25.
c3 {[%clk 0:02:18.3]} 25... Rxc4 {[%clk 0:03:50.9]} 0-1

[Event "Live Chess"]
[Site "Chess.com"]
[Date "2024.06.01"]
[Round "-"]
[White "toog"]
[Black "OurKnightAtTheOpera"]
[Result "1-0"]
[WhiteElo "2600"]
[BlackElo "1985"]
[TimeControl "300"]
[EndTime "15:57:54 PDT"]
[Termination "toog won by resignation"]

1. Nf3 {[%clk 0:04:57.4]} 1... d5 {[%clk 0:04:59]} 2. e3 {[%clk 0:04:55.5]} 2...
Nf6 {[%clk 0:04:57.8]} 3. c4 {[%clk 0:04:54.6]} 3... e6 {[%clk 0:04:54.4]} 4. b3
{[%clk 0:04:52.4]} 4... Be7 {[%clk 0:04:52.6]} 5. Bb2 {[%clk 0:04:51.9]} 5...
O-O {[%clk 0:04:52]} 6. Nc3 {[%clk 0:04:48.4]} 6... c5 {[%clk 0:04:48.6]} 7.
cxd5 {[%clk 0:04:47.7]} 7... exd5 {[%clk 0:04:47.7]} 8. d4 {[%clk 0:04:45.9]}
8... cxd4 {[%clk 0:04:43.4]} 9. Nxd4 {[%clk 0:04:43.5]} 9... Nc6 {[%clk
0:04:42.1]} 10. Bb5 {[%clk 0:04:41.2]} 10... a6 {[%clk 0:04:40.6]} 11. Bxc6
{[%clk 0:04:39.7]} 11... bxc6 {[%clk 0:04:39.2]} 12. Nxc6 {[%clk 0:04:39.6]}
12... Qc7 {[%clk 0:04:35.7]} 13. Nxe7+ {[%clk 0:04:38.7]} 13... Qxe7 {[%clk
0:04:35.6]} 14. O-O {[%clk 0:04:35.9]} 14... Be6 {[%clk 0:04:34.3]} 15. Ne2
{[%clk 0:04:33.7]} 15... Rac8 {[%clk 0:04:31]} 16. Nf4 {[%clk 0:04:31.8]} 16...
Rfd8 {[%clk 0:04:28.2]} 17. Qd4 {[%clk 0:04:28.5]} 17... Qc5 {[%clk 0:04:23.4]}
18. Rac1 {[%clk 0:04:26.3]} 18... Qxd4 {[%clk 0:04:21.4]} 19. Bxd4 {[%clk
0:04:26.2]} 19... Ne4 {[%clk 0:04:07.9]} 20. f3 {[%clk 0:04:24.1]} 20... Nd6
{[%clk 0:04:00.6]} 21. Kf2 {[%clk 0:04:16.3]} 21... Nb5 {[%clk 0:03:59.1]} 22.
Bb2 {[%clk 0:04:14.2]} 22... Bf5 {[%clk 0:03:53.8]} 23. a4 {[%clk 0:04:03.7]}
23... Nc7 {[%clk 0:03:34.6]} 24. Be5 {[%clk 0:03:57]} 24... Ne6 {[%clk
0:03:27.5]} 25. Rxc8 {[%clk 0:03:54.8]} 25... Rxc8 {[%clk 0:03:26.4]} 26. Nxd5
{[%clk 0:03:54.7]} 26... Rc2+ {[%clk 0:03:22.1]} 27. Kg3 {[%clk 0:03:53]} 27...
Bg6 {[%clk 0:03:18]} 28. Ne7+ {[%clk 0:03:49.8]} 28... Kh8 {[%clk 0:03:13]} 29.
Nxg6+ {[%clk 0:03:49]} 29... hxg6 {[%clk 0:03:12.3]} 30. Rf2 {[%clk 0:03:48.2]}
30... Rc1 {[%clk 0:03:08.5]} 31. Rb2 {[%clk 0:03:43.1]} 31... f6 {[%clk
0:03:01.4]} 32. Bd4 {[%clk 0:03:40]} 32... Rd1 {[%clk 0:02:57.2]} 33. b4 {[%clk
0:03:37.8]} 33... Nxd4 {[%clk 0:02:56]} 34. exd4 {[%clk 0:03:37.7]} 34... Rxd4
{[%clk 0:02:55.4]} 35. b5 {[%clk 0:03:37.1]} 35... axb5 {[%clk 0:02:50.1]} 36.
axb5 {[%clk 0:03:37]} 36... Rd7 {[%clk 0:02:49.7]} 37. b6 {[%clk 0:03:31.7]}
37... Rb7 {[%clk 0:02:49]} 38. Kf4 {[%clk 0:03:31.2]} 38... Kg8 {[%clk
0:02:48.2]} 39. Ke4 {[%clk 0:03:30.5]} 39... Kf8 {[%clk 0:02:47.7]} 40. Kd5
{[%clk 0:03:30.1]} 40... Ke8 {[%clk 0:02:47.2]} 41. Kc6 {[%clk 0:03:29.7]} 1-0

[Event "Live Chess"]
[Site "Chess.com"]
[Date "2024.06.01"]
[Round "-"]
[White "grillage"]
[Black "jk0110"]
[Result "1-0"]
[WhiteElo "1870"]
[BlackElo "1230"]
[TimeControl "300"]
[EndTime "15:57:55 PDT"]
[Termination "grillage won by resignation"]

1. d4 {[%clk 0:04:57.8]} 1... Nf6 {[%clk 0:04:58]} 2. Nf3 {[%clk 0:04:57.1]}
2... d5 {[%clk 0:04:56.2]} 3. c4 {[%clk 0:04:56.2]} 3... Bf5 {[%clk 0:04:50.8]}
4. Nc3 {[%clk 0:04:50.5]} 4... e6 {[%clk 0:04:46.6]} 5. cxd5 {[%clk 0:04:47.5]}
5... Nxd5 {[%clk 0:04:41.7]} 6. Qb3 {[%clk 0:04:35]} 6... Nb6 {[%clk 0:04:23]}
7. e4 {[%clk 0:04:28.5]} 7... Bg6 {[%clk 0:04:16.6]} 8. Bd3 {[%clk 0:04:26.1]}
8... Nc6 {[%clk 0:04:07.6]} 9. Be3 {[%clk 0:04:23.4]} 9... a6 {[%clk 0:03:50.5]}
10. O-O {[%clk 0:04:21.1]} 10... Na5 {[%clk 0:03:37.9]} 11. Qc2 {[%clk
0:04:17.7]} 11... Bb4 {[%clk 0:03:26.8]} 12. a3 {[%clk 0:04:14.5]} 12... Bxc3
{[%clk 0:03:22.6]} 13. bxc3 {[%clk 0:04:12]} 13... O-O {[%clk 0:03:21.1]} 14.
Ne5 {[%clk 0:04:05.9]} 14... Qf6 {[%clk 0:02:39.7]} 15. Nxg6 {[%clk 0:04:00]}
15... fxg6 {[%clk 0:02:36.6]} 16. e5 {[%clk 0:03:55.1]} 16... Qf7 {[%clk
0:02:23.5]} 17. Rab1 {[%clk 0:03:48.1]} 17... Nac4 {[%clk 0:02:17.9]} 18. Bxc4
{[%clk 0:03:44.2]} 18... Nxc4 {[%clk 0:02:16.9]} 19. Rxb7 {[%clk 0:03:38.7]}
19... Nxa3 {[%clk 0:02:06.1]} 20. Qb3 {[%clk 0:03:33.6]} 20... Nb5 {[%clk
0:02:00.5]} 21. c4 {[%clk 0:03:29.9]} 21... Na7 {[%clk 0:01:45]} 22. Rb1 {[%clk
0:03:21.9]} 22... Nc6 {[%clk 0:01:32.5]} 23. Qa4 {[%clk 0:03:14.9]} 23... Ne7
{[%clk 0:01:16.3]} 24. Rxc7 {[%clk 0:03:11.9]} 24... Qf5 {[%clk 0:01:04.1]} 25.
Rbb7 {[%clk 0:02:54.3]} 25... Rab8 {[%clk 0:00:38.4]} 26. h3 {[%clk 0:02:52.3]}
26... Rxb7 {[%clk 0:00:30]} 27. Rxb7 {[%clk 0:02:51.4]} 27... Qd3 {[%clk
0:00:22.3]} 28. Rxe7 {[%clk 0:02:42.8]} 28... Qd1+ {[%clk 0:00:18]} 29. Qxd1
{[%clk 0:02:39.7]} 1-0

[Event "Live Chess"]
[Site "Chess.com"]
[Date "2024.06.01"]
[Round "-"]
[White "viktor_forever1994"]
[Black "IgorSchukin"]
[Result "0-1"]
[WhiteElo "1370"]
[BlackElo "1715"]
[TimeControl "300"]
[EndTime "15:57:58 PDT"]
[Termination "IgorSchukin won by checkmate"]

1. e4 {[%clk 0:04:58.5]} 1... c5 {[%clk 0:04:58]} 2. Nf3 {[%clk 0:04:57.6]} 2...
e6 {[%clk 0:04:57.4]} 3. d4 {[%clk 0:04:57.5]} 3... cxd4 {[%clk 0:04:55.8]} 4.
Nxd4 {[%clk 0:04:57.4]} 4... Nc6 {[%clk 0:04:55.2]} 5. Nc3 {[%clk 0:04:56.4]}
5... Qc7 {[%clk 0:04:54]} 6. Bb5 {[%clk 0:04:55.1]} 6... a6 {[%clk 0:04:52.5]}
7. Ba4 {[%clk 0:04:53.6]} 7... b5 {[%clk 0:04:50.7]} 8. Bb3 {[%clk 0:04:52.5]}
8... Bb7 {[%clk 0:04:49.9]} 9. O-O {[%clk 0:04:51.1]} 9... Nf6 {[%clk
0:04:48.3]} 10. Bg5 {[%clk 0:04:48.3]} 10... Be7 {[%clk 0:04:46.6]} 11. Re1
{[%clk 0:04:39.5]} 11... h6 {[%clk 0:04:43.3]} 12. Be3 {[%clk 0:04:33.7]} 12...
d6 {[%clk 0:04:39.3]} 13. h3 {[%clk 0:04:23.5]} 13... O-O {[%clk 0:04:37.2]} 14.
Qd2 {[%clk 0:04:17.1]} 14... Nxd4 {[%clk 0:04:35.2]} 15. Bxd4 {[%clk 0:04:14.3]}
15... Rac8 {[%clk 0:04:32.7]} 16. Rad1 {[%clk 0:04:07.3]} 16... Rfd8 {[%clk
0:04:30.3]} 17. Qe3 {[%clk 0:03:54]} 17... Re8 {[%clk 0:04:21.1]} 18. e5 {[%clk
0:03:34.3]} 18... dxe5 {[%clk 0:04:13.5]} 19. Bxe5 {[%clk 0:03:34.2]} 19... Qc6
{[%clk 0:04:06.1]} 20. Bxf6 {[%clk 0:03:18.7]} 20... Qxg2# {[%clk 0:04:03.3]}
0-1